bitfinex/quotes_ETHUSD_20250903
["timestamp","ask_amount","ask_price","bid_price","bid_amount"]
[1756921584619,0.4941,4474.2,4473.9,3.822]
[1756921585583,2.23498895,4474.3,4473.9,3.822]
[1756921585831,3.0,4474.5,4473.9,3.822]
[1756921586013,2.23469178,4474.9,4474.1,0.293]
[1756921586316,2.23469789,4474.9,4474.1,0.293]
[1756921586515,2.23474488,4474.8,4474.1,0.293]
[1756921586816,0.9452,4475.1,4474.1,0.293]
[1756921587017,2.72869265,4475.1,4474.2,2.23503643]
[1756921587218,3.4511,4475.4,4474.3,7.77096377]
[1756921587423,0.00200001,4475.8,4474.4,0.4468]
[1756921587607,0.00200001,4475.8,4475.3,0.293]
[1756921587811,0.00200001,4475.8,4475.4,3.819]
[1756921588189,0.00200001,4475.8,4475.5,3.819]
[1756921588991,0.00200001,4475.8,4475.7,0.293]
[1756921589218,0.00200001,4475.8,4475.7,2.52728737]
[1756921589404,0.00200001,4475.8,4475.7,2.63928737]
[1756921590129,0.00200001,4475.8,4475.7,3.97729615]
[1756921590330,0.00200001,4475.8,4475.7,3.95495328]
[1756921590626,0.00200001,4475.8,4475.7,5.19619615]
[1756921590827,1e-08,4476.2,4475.9,2.23418753]
[1756921591128,1e-08,4476.2,4476.1,3.13808771]
[1756921591323,1e-08,4476.2,4476.1,4.47631525]
[1756921591492,1e-08,4476.2,4476.1,5.34961525]
[1756921591690,1e-08,4476.2,4476.1,5.32727438]
[1756921592521,1e-08,4476.8,4476.1,5.32727438]
[1756921592720,1e-08,4476.8,4476.7,3.02578828]
[1756921593022,1e-08,4477.4,4476.7,7.50309121]
[1756921593354,1e-08,4477.4,4477.3,3.44478893]
[1756921593543,1e-08,4477.4,4477.3,14.37212381]
[1756921593720,0.002,4479.3,4478.2,3.02504006]
[1756921593921,0.002,4479.3,4478.2,8.58337046]
[1756921594148,0.002,4479.3,4478.2,10.9352886]
[1756921597754,0.002,4479.3,4478.5,2.23289047]
[1756921597755,1e-08,4478.7,4478.5,2.23289047]
[1756921597955,1e-08,4478.7,4478.6,6.06916901]
[1756921598159,1e-08,4478.7,4478.6,6.91254061]
[1756921598455,1e-08,4478.7,4478.6,7.33944061]
[1756921598643,1e-08,4478.7,4478.6,8.37587372]
[1756921600460,1e-08,4478.7,4478.6,7.94897372]
[1756921600651,1e-08,4478.7,4478.6,7.50257372]
[1756921601562,1e-08,4478.7,4478.6,7.94897372]
[1756921602622,1e-08,4478.7,4478.6,7.50257372]
[1756921602829,1e-08,4478.7,4478.6,7.49657372]
[1756921604461,1e-08,4478.7,4478.6,8.73497372]
[1756921604959,1e-08,4478.7,4478.6,8.28857372]
[1756921606564,1e-08,4478.7,4478.6,8.28357372]
[1756921608170,0.002,4479.3,4479.2,3.02454152]
[1756921608350,0.002,4479.3,4479.2,14.32299567]
[1756921608541,0.002,4479.3,4479.2,14.63029567]
[1756921608743,0.9274,4480.4,4479.3,0.792]
[1756921608744,1e-08,4479.8,4479.3,0.792]
[1756921608941,1e-08,4479.8,4479.7,3.13629234]
[1756921609148,1e-08,4479.8,4479.7,7.26891526]
[1756921609347,1e-08,4479.8,4479.7,8.28405307]
[1756921609677,1e-08,4479.8,4479.7,8.73045307]
[1756921609853,1e-08,4479.8,4479.7,4.48105307]
[1756921610060,1e-08,4479.8,4479.7,7.97675307]
[1756921610765,1e-08,4479.8,4479.7,4.17375307]
[1756921610966,1e-08,4479.8,4479.7,7.97575307]
[1756921611195,1e-08,4479.8,4479.7,7.97475307]
[1756921612236,1e-08,4479.8,4479.7,8.28205307]
[1756921612648,1e-08,4479.8,4479.7,8.28105307]
[1756921614079,1.23940001,4479.8,4479.7,7.97175307]
[1756921614249,1.23940001,4479.8,4479.7,6.14329234]
[1756921614454,1.23940001,4479.8,4479.7,6.93529234]
[1756921614849,1.23940001,4479.8,4479.7,2.34429234]
[1756921615045,1.23940001,4479.8,4479.7,6.14229234]
[1756921616185,1.23940001,4479.8,4479.7,6.14129234]
[1756921616585,1.23940001,4479.8,4479.7,2.34429234]
[1756921616774,1.23940001,4479.8,4479.7,6.14129234]
[1756921619010,1.23940001,4479.8,4479.7,6.13929234]
[1756921620268,0.75110001,4479.8,4479.7,6.13929234]
[1756921622097,0.77010001,4479.8,4479.7,6.13929234]
[1756921622396,0.77010001,4479.8,4479.7,2.34429234]
[1756921622600,0.00200001,4479.8,4479.7,8.16498298]
[1756921622784,0.00200001,4479.8,4479.7,8.14266006]
[1756921623492,0.00200001,4479.8,4479.7,7.69016006]
[1756921624071,0.00200001,4479.8,4479.7,8.14266006]
[1756921625883,0.00200001,4479.8,4479.7,8.03066006]
[1756921626089,1e-08,4480.3,4480.2,3.02404321]
[1756921626274,1e-08,4480.3,4480.2,9.19097925]
[1756921626473,1e-08,4480.3,4480.2,9.47285882]
[1756921626672,1e-08,4480.3,4480.2,5.68185882]
[1756921626909,1e-08,4480.3,4480.2,9.47285882]
[1756921627074,1e-08,4480.3,4480.2,9.16865882]
[1756921627405,0.002,4482.5,4480.2,9.16865882]
[1756921627406,1e-08,4481.8,4481.7,3.02329615]
[1756921627580,1e-08,4481.8,4481.7,28.02969314]
[1756921627778,1e-08,4481.8,4481.7,28.75037059]
[1756921628281,0.002,4482.5,4481.7,28.75037059]
[1756921628282,1e-08,4482.7,4482.5,0.792]
[1756921628593,1e-08,4482.7,4482.6,22.07491105]
[1756921628795,0.002,4483.3,4482.9,0.792]
[1756921628970,0.002,4483.7,4483.6,3.02235061]
[1756921629173,1e-08,4483.8,4483.7,3.02230086]
[1756921629372,0.4512,4485.3,4484.7,3.02180355]
[1756921629606,0.025,4485.8,4484.7,22.40575796]
[1756921629770,0.025,4485.8,4484.7,25.01407095]
[1756921629974,0.025,4485.8,4484.7,24.58717095]
[1756921630179,0.025,4485.8,4484.7,6.46671654]
[1756921630180,0.9093,4485.6,4484.7,6.46671654]
[1756921630376,1.2472,4484.8,4484.7,1.716]
[1756921631007,1.2472,4484.8,4484.7,5.588]
[1756921631178,3.47695383,4484.8,4484.7,1.716]
[1756921631381,3.47695383,4484.8,4484.7,5.588]
[1756921631884,3.47695383,4484.8,4484.7,1.716]
[1756921632102,4.04761652,4484.8,4484.7,5.587]
[1756921632412,4.04761652,4484.8,4484.7,1.716]
[1756921632600,7.04761652,4484.8,4484.7,5.585]
[1756921633200,7.04761652,4484.8,4484.7,1.716]
[1756921633514,7.04761652,4484.8,4482.6,4.49871536]
[1756921633515,5.22980355,4484.7,4483.9,1.715]
[1756921633809,2.23028979,4483.8,4483.7,1.715]
[1756921634011,2.23030086,4483.7,4483.6,1.715]
[1756921634217,6.13960086,4483.7,4483.6,1.715]
[1756921634526,6.45250086,4483.7,4483.6,5.582]
[1756921635380,6.45250086,4483.7,4483.6,1.715]
[1756921635581,7.32077322,4483.7,4483.6,1.715]
[1756921635882,7.32077322,4483.7,4482.8,0.025]
[1756921635883,2.23057697,4483.2,4482.8,0.025]
[1756921636087,2.23047522,4483.4,4482.9,3.83]
[1756921636281,0.3129,4483.0,4482.9,3.83]
[1756921636491,1.2222,4483.0,4482.9,3.83]
[1756921637841,2.23069887,4482.9,4482.8,1.74]
[1756921638029,1.2222,4482.9,4482.8,5.605]
[1756921638537,3.45289887,4482.9,4482.8,5.605]
[1756921638907,4.02124406,4482.9,4482.8,5.604]
[1756921639843,1.79054519,4482.9,4482.8,5.604]
[1756921640137,1.2222,4482.9,4482.8,5.604]
[1756921641812,0.7641,4482.9,4482.8,5.604]
[1756921642861,0.7641,4482.9,4482.8,9.854]
[1756921643672,0.1112,4483.4,4482.8,10.1582]
[1756921643841,0.1112,4483.4,4482.9,6.48067249]
[1756921644040,0.4581,4483.7,4482.9,4.25]
[1756921644041,0.4512,4483.6,4482.9,4.25]
[1756921644260,2.68158828,4483.6,4483.3,0.1112]
[1756921644461,0.1112,4484.1,4483.3,0.1112]
[1756921644462,0.4581,4484.0,4483.4,3.859]
[1756921644632,0.3129,4483.5,4483.4,8.109]
[1756921644837,0.7641,4483.5,4483.4,8.108]
[1756921645155,1.2222,4483.5,4483.4,8.108]
[1756921645354,1.2222,4483.5,4483.4,4.25]
[1756921645573,2.23020219,4483.9,4483.4,8.108]
[1756921645873,3.73115022,4483.8,4483.4,8.108]
[1756921646174,0.3129,4483.5,4483.4,8.108]
[1756921646384,3.0,4484.0,4483.4,8.108]
[1756921646385,2.22993849,4484.5,4483.4,8.108]
[1756921646546,0.9093,4484.2,4483.5,0.022304]
[1756921646747,0.9093,4484.2,4483.8,0.1112]
[1756921647059,0.8093,4484.1,4483.9,3.857]
[1756921647371,0.771,4484.0,4483.9,3.857]
[1756921648086,0.1112,4484.4,4483.9,3.857]
[1756921648253,2.54305165,4484.0,4483.9,3.857]
[1756921648584,5.23025112,4483.8,4483.7,1.715]
[1756921648889,6.82439637,4483.8,4483.7,5.57]
[1756921649180,2.04734525,4483.8,4483.7,5.57]
[1756921649385,2.99635112,4483.8,4483.7,5.57]
[1756921649568,3.7661,4483.8,4483.7,5.57]
[1756921649880,4.2242,4483.8,4483.7,1.715]
[1756921650078,4.2293,4483.8,4483.7,5.571]
[1756921650381,3.7661,4483.8,4483.7,5.571]
[1756921650682,4.2293,4483.8,4483.7,5.571]
[1756921650881,6.84728112,4483.8,4483.7,5.571]
[1756921651185,4.61703,4483.8,4483.7,5.571]
[1756921651488,4.2293,4483.8,4483.7,5.571]
[1756921652480,6.45955112,4483.8,4483.7,1.715]
[1756921652644,6.45955112,4483.8,4483.7,5.569]
[1756921654160,6.45955112,4483.8,4483.7,1.715]
[1756921654343,6.45955112,4483.8,4483.7,5.565]
[1756921654344,5.1093906,4483.8,4483.7,5.565]
[1756921654538,3.002,4483.8,4483.7,5.8781]
[1756921654740,3.002,4483.8,4483.7,5.9893]
[1756921654938,4.2591,4483.8,4483.7,5.565]
[1756921655160,6.48935112,4483.8,4483.7,5.565]
[1756921655958,3.3019,4483.8,4483.7,5.565]
[1756921656162,0.002,4483.8,4483.7,5.8781]
[1756921656361,0.002,4483.8,4483.7,5.9893]
[1756921656940,0.002,4483.8,4483.7,8.21960086]
[1756921657673,0.002,4483.8,4483.7,5.9893]
[1756921658056,0.002,4483.8,4483.7,5.6762]
[1756921658373,0.002,4483.8,4483.7,5.9893]
[1756921658577,0.002,4483.8,4483.7,8.21960086]
[1756921658772,0.002,4483.8,4483.7,5.9893]
[1756921659139,0.002,4483.8,4483.7,8.21960086]
[1756921660059,0.002,4483.8,4483.7,10.25826817]
[1756921661399,0.002,4483.8,4483.7,9.31106817]
[1756921661552,0.002,4483.8,4483.7,4.36960086]
[1756921661882,0.002,4483.8,4483.7,8.21460086]
[1756921662083,0.002,4483.8,4483.7,5.6712]
[1756921662385,0.002,4483.8,4483.7,8.67930086]
[1756921662587,0.002,4483.8,4483.7,9.16180086]
[1756921662892,0.002,4483.8,4483.7,11.09302081]
[1756921663794,0.48058545,4485.6,4485.5,3.02140586]
[1756921663987,0.025,4486.8,4485.7,2.22930646]
[1756921664300,0.025,4486.8,4485.7,6.08130646]
[1756921664453,0.025,4486.8,4485.7,9.40492769]
[1756921664656,0.025,4486.8,4485.7,5.55392769]
[1756921664868,0.025,4486.8,4485.7,9.88742769]
[1756921665776,0.025,4486.8,4485.7,6.03642769]
[1756921665977,0.025,4486.8,4485.7,9.88542769]
[1756921666707,0.025,4486.8,4485.7,5.55392769]
[1756921666855,0.025,4486.8,4485.7,9.88442769]
[1756921667062,0.025,4486.8,4485.7,9.99562769]
[1756921667709,1e-08,4485.8,4485.7,9.99562769]
[1756921667919,1e-08,4485.8,4485.7,12.99562769]
[1756921668421,0.002,4486.1,4486.0,3.02115737]
[1756921668571,0.025,4486.8,4486.7,3.02080959]
[1756921668775,0.025,4486.8,4486.7,8.89590959]
[1756921668993,1e-08,4486.8,4486.7,9.84310959]
[1756921669203,1e-08,4486.8,4486.7,12.95430959]
[1756921669401,1e-08,4486.8,4486.7,9.10630959]
[1756921669602,1e-08,4486.8,4486.7,13.2195634]
[1756921670704,1e-08,4486.8,4486.7,9.3705634]
[1756921670905,1e-08,4486.8,4486.7,13.2175634]
[1756921671295,1e-08,4486.8,4486.7,9.3705634]
[1756921671470,1e-08,4486.8,4486.7,13.2165634]
[1756921672274,1e-08,4486.8,4486.7,9.3705634]
[1756921672475,1e-08,4486.8,4486.7,11.4773634]
[1756921672970,1e-08,4486.8,4486.7,12.2693634]
[1756921673175,1e-08,4486.8,4486.7,12.7340634]
[1756921673987,1e-08,4486.8,4486.7,12.2693634]
[1756921674183,1e-08,4486.8,4486.7,8.4233634]
[1756921674383,1e-08,4486.8,4486.7,12.2653634]
[1756921674887,1e-08,4486.8,4486.7,12.7300634]
[1756921675583,1e-08,4486.8,4486.7,8.8880634]
[1756921675789,1e-08,4486.8,4486.7,12.2643634]
[1756921675984,1e-08,4486.8,4486.7,5.4233634]
[1756921676177,1e-08,4486.8,4486.7,9.2633634]
[1756921676876,1e-08,4486.8,4486.7,9.2623634]
[1756921677071,1e-08,4486.8,4486.7,5.4233634]
[1756921677311,1e-08,4486.8,4486.7,5.1102634]
[1756921677501,0.29990001,4486.8,4486.7,8.9482634]
[1756921677809,1e-08,4486.8,4486.7,8.9482634]
[1756921678210,1e-08,4486.8,4486.7,9.2613634]
[1756921678405,1e-08,4486.8,4486.7,13.2085634]
[1756921678911,1e-08,4486.8,4486.7,13.2075634]
[1756921679372,1e-08,4486.8,4486.7,13.4310634]
[1756921679582,1e-08,4486.8,4486.7,13.2075634]
[1756921680382,1e-08,4486.8,4486.7,12.2593634]
[1756921683214,1e-08,4486.8,4486.7,13.1815634]
[1756921683390,1e-08,4486.8,4486.7,13.0703634]
[1756921683590,1e-08,4486.8,4486.7,13.1815634]
[1756921684822,0.025,4487.8,4487.1,6.0206109]
[1756921685025,0.025,4487.8,4487.7,2.33951294]
[1756921685227,0.025,4487.8,4487.7,17.48951293]
[1756921685394,1.2453,4487.8,4487.7,14.44851293]
[1756921685724,1.2453,4487.8,4487.7,13.23851294]
[1756921685890,1.23644244,4487.8,4487.7,13.23851294]
[1756921687421,0.32164244,4487.8,4487.7,15.57720239]
[1756921687741,0.01614244,4487.8,4487.7,15.87750239]
[1756921688042,0.01614244,4487.8,4487.7,16.34130239]
[1756921688533,0.01614244,4487.8,4487.7,16.79970239]
[1756921688723,0.01614244,4487.8,4487.7,16.34130239]
[1756921689324,0.483,4488.8,4487.7,16.34130239]
[1756921689325,0.483,4488.8,4488.7,3.01981651]
[1756921689508,0.025,4488.8,4488.7,12.19878665]
[1756921689706,0.025,4488.8,4488.7,12.96288665]
[1756921689933,0.025,4488.8,4488.7,13.42128665]
[1756921690241,0.025,4488.8,4488.7,12.50008665]
[1756921690539,0.025,4488.8,4488.7,12.36464773]
[1756921690833,0.025,4488.8,4488.7,12.19978665]
[1756921691500,0.7885,4488.8,4488.7,2.71124052]
[1756921691703,1.2453,4488.8,4488.7,8.76905703]
[1756921692636,1.2453,4488.8,4488.7,5.74924052]
[1756921694139,1.2453,4488.8,4488.7,5.75005091]
[1756921695446,1.2453,4488.8,4488.7,7.97786742]
[1756921695636,1.2453,4488.8,4488.7,5.75005091]
[1756921695955,1.2453,4488.8,4488.7,1.92005091]
[1756921695956,1.36983,4488.8,4488.7,1.92005091]
[1756921696119,1.36983,4488.8,4488.7,5.74705091]
[1756921696309,4.07733357,4488.8,4488.7,5.74705091]
[1756921696940,1.84956669,4488.8,4488.7,1.92005091]
[1756921697133,1.84956669,4488.8,4488.7,5.74605091]
[1756921697344,4.07733357,4488.8,4488.7,1.92005091]
[1756921697661,4.07733357,4488.8,4488.7,5.74505091]
[1756921698142,4.07733357,4488.8,4488.7,1.92005091]
[1756921698308,4.07733357,4488.8,4488.7,5.74505091]
[1756921698512,1.84956669,4488.8,4488.7,5.74505091]
[1756921698712,1.84956669,4488.8,4488.7,5.74405091]
[1756921699220,4.07733357,4488.8,4488.7,5.74405091]
[1756921700745,4.07733357,4488.8,4488.7,1.92005091]
[1756921700923,4.07733357,4488.8,4488.7,5.74457402]
[1756921701345,4.07733357,4488.8,4488.7,1.92057402]
[1756921701649,7.18853357,4488.8,4488.7,4.02957402]
[1756921703366,7.18853357,4488.8,4488.7,0.20757402]
[1756921703524,2.22786614,4488.6,4487.8,0.001]
[1756921703728,2.22871024,4486.9,4486.7,0.303]
[1756921704033,3.01394693,4486.9,4486.7,0.303]
[1756921704232,3.92874693,4486.9,4486.7,0.303]
[1756921704546,3.92881036,4486.9,4486.7,0.303]
[1756921705240,3.92876074,4486.9,4486.7,0.303]
[1756921705446,1.2203,4486.9,4486.7,0.303]
[1756921705967,0.3055,4486.9,4486.7,0.303]
[1756921706450,3.44901024,4486.9,4486.7,0.303]
[1756921706627,1.2203,4486.9,4486.7,0.303]
[1756921707835,3.44901024,4486.9,4486.7,0.303]
[1756921708245,1.2203,4486.9,4486.7,0.303]
[1756921708757,4.09390639,4486.9,4486.1,1.713]
[1756921708929,4.09390639,4486.9,4486.8,3.85]
[1756921709446,4.09390639,4486.9,4486.8,0.025]
[1756921710853,1.86519615,4486.9,4486.8,0.025]
[1756921711263,1.2203,4486.9,4486.8,0.025]
[1756921711560,5.22857676,4487.2,4486.8,0.025]
[1756921711735,0.293,4486.9,4486.8,0.025]
[1756921712066,2.52171024,4486.9,4486.8,0.025]
[1756921712363,2.98021024,4486.9,4486.8,0.025]
[1756921712572,0.4585,4488.5,4488.0,2.22816399]
[1756921712856,0.4585,4488.5,4486.8,4.9996]
[1756921712857,2.22791881,4488.5,4488.1,1.713]
[1756921713152,0.9535,4488.4,4488.2,3.828]
[1756921713449,0.9535,4488.4,4488.2,3.83]
[1756921713450,0.293,4488.3,4488.2,3.83]
[1756921713852,1.2465,4488.3,4488.2,3.9412]
[1756921714053,1.2465,4488.3,4488.2,0.1112]
[1756921714356,3.027,4488.8,4488.2,0.1112]
[1756921714357,0.9805,4488.8,4488.2,3.9402]
[1756921714558,5.22791211,4488.6,4488.2,3.9402]
[1756921714735,7.11337332,4488.6,4488.2,3.9402]
[1756921715321,4.88546121,4488.6,4488.2,3.9402]
[1756921716279,5.52101506,4488.3,4488.2,0.1112]
[1756921716426,3.77132987,4488.3,4488.2,0.1112]
[1756921716626,6.47451506,4488.3,4487.5,3.828]
[1756921716930,3.0,4488.1,4487.6,0.1112]
[1756921717235,0.1112,4488.2,4487.6,0.1112]
[1756921717429,0.1112,4488.6,4488.0,0.1112]
[1756921717650,2.22795892,4488.5,4488.1,3.828]
[1756921717977,0.293,4488.2,4488.1,3.828]
[1756921718193,1.2465,4488.2,4487.1,1.713]
[1756921718475,0.1112,4487.8,4487.1,1.8242]
[1756921718640,0.9535,4488.1,4487.2,3.83]
[1756921718847,1.0647,4488.1,4487.5,0.1112]
[1756921719082,3.40647,4488.0,4487.5,0.1112]
[1756921719396,0.40647,4488.0,4487.2,6.05854952]
[1756921719549,2.22827143,4487.8,4487.3,3.831]
[1756921719749,3.0,4487.7,4487.5,0.1112]
[1756921720050,0.293,4487.6,4487.5,3.9422]
[1756921721059,2.52136259,4487.6,4487.4,3.83]
[1756921721259,0.293,4487.6,4487.4,3.83]
[1756921721484,0.293,4487.6,4487.5,0.001]
[1756921722163,5.22822302,4487.9,4487.5,0.001]
[1756921722363,0.293,4487.6,4487.5,0.001]
[1756921723656,0.6699382,4489.0,4487.6,0.792]
[1756921723982,0.002,4489.3,4488.7,2.52651651]
[1756921724157,0.002,4489.3,4488.7,6.36851651]
[1756921725082,0.002,4489.3,4488.7,6.83481651]
[1756921725283,0.002,4489.3,4488.7,7.91238929]
[1756921725849,0.002,4489.3,4488.7,7.44608929]
[1756921726078,0.002,4489.3,4488.7,6.36851651]
[1756921726492,0.002,4489.3,4488.7,6.36651651]
[1756921727393,0.002,4489.3,4488.7,6.06681651]
[1756921727593,0.002,4489.3,4488.7,6.36551651]
[1756921728771,0.002,4489.3,4488.7,8.09091651]
[1756921728983,0.002,4489.3,4488.7,9.29409969]
[1756921730385,0.002,4489.3,4488.7,9.29109969]
[1756921732497,0.002,4489.3,4488.7,8.82399969]
[1756921732667,0.002,4489.3,4488.7,8.82299969]
[1756921733052,0.002,4489.3,4488.7,9.29009969]
[1756921733666,0.002,4489.3,4488.7,9.40129969]
[1756921734276,0.002,4489.3,4488.7,12.40129969]
[1756921734866,0.002,4489.3,4488.7,12.29009969]
[1756921735066,1e-08,4488.8,4488.7,12.40129969]
[1756921735279,1e-08,4488.8,4488.7,23.65129968]
[1756921735479,1e-08,4488.8,4488.7,12.40129969]
[1756921737690,1e-08,4488.8,4488.7,11.13819969]
[1756921737865,1e-08,4488.8,4488.7,11.14219969]
[1756921738561,1e-08,4488.8,4488.7,11.93419969]
[1756921738965,1e-08,4488.8,4488.7,11.46789969]
[1756921739882,1e-08,4488.8,4488.7,11.46689969]
[1756921740399,1e-08,4488.8,4488.7,7.63289969]
[1756921740601,1e-08,4488.8,4488.7,7.88401651]
[1756921740602,0.28600001,4488.8,4488.7,7.88401651]
[1756921740765,1e-08,4488.8,4488.7,7.88401651]
[1756921740964,1e-08,4488.8,4488.7,8.17141651]
[1756921741169,1e-08,4488.8,4488.7,8.96341651]
[1756921741392,1e-08,4488.8,4488.7,10.08254918]
[1756921741697,1e-08,4488.8,4488.7,11.00074918]
[1756921741905,1e-08,4488.8,4488.7,9.79514918]
[1756921742109,1e-08,4488.8,4488.7,10.08254918]
[1756921743322,1e-08,4488.8,4488.7,10.53204918]
[1756921743501,1e-08,4488.8,4488.7,10.08254918]
[1756921743914,1e-08,4488.8,4488.7,6.24954918]
[1756921744222,1e-08,4488.8,4488.7,10.08354918]
[1756921744519,1e-08,4488.8,4488.7,10.53304918]
[1756921744727,1e-08,4488.8,4488.7,11.00174918]
[1756921745183,1e-08,4488.8,4488.7,10.08354918]
[1756921745591,1e-08,4488.8,4488.7,6.24954918]
[1756921745830,1e-08,4488.8,4488.7,9.79514918]
[1756921746326,1e-08,4488.8,4488.7,10.08254918]
[1756921746684,1e-08,4488.8,4488.7,5.96214918]
[1756921746884,0.28600001,4488.8,4488.7,7.88301651]
[1756921747420,1e-08,4488.8,4488.7,8.96241651]
[1756921747824,1e-08,4488.8,4488.7,8.67501651]
[1756921748314,0.28600001,4488.8,4488.7,8.67501651]
[1756921748512,1e-08,4488.8,4488.7,8.67501651]
[1756921748715,1e-08,4488.8,4488.7,10.05270918]
[1756921748909,1e-08,4488.8,4488.7,9.76530918]
[1756921749113,0.28600001,4488.8,4488.7,4.84301651]
[1756921749314,0.28600001,4488.8,4488.7,7.88201651]
[1756921749315,1.19540001,4488.8,4488.7,7.88201651]
[1756921749624,0.47650001,4488.8,4488.7,7.88201651]
[1756921749799,0.28600001,4488.8,4488.7,7.88201651]
[1756921750125,1.19540001,4488.8,4488.7,5.6542]
[1756921750288,1.19540001,4488.8,4488.7,7.88201651]
[1756921751492,0.28600001,4488.8,4488.7,7.88201651]
[1756921751725,0.71890001,4488.8,4488.7,8.89300959]
[1756921751917,1.19540001,4488.8,4488.7,7.88201651]
[1756921752427,1.19540001,4488.8,4488.7,8.96241651]
[1756921752428,1e-08,4488.8,4488.7,8.96241651]
[1756921752627,1e-08,4488.8,4488.7,9.41191651]
[1756921753219,1e-08,4488.8,4488.7,8.96241651]
[1756921753422,1e-08,4488.8,4488.7,4.84301651]
[1756921753729,1e-08,4488.8,4488.7,10.09350959]
[1756921754230,1e-08,4488.8,4488.7,6.26250959]
[1756921754419,1e-08,4488.8,4488.7,9.80610959]
[1756921754420,0.28600001,4488.8,4488.7,9.80610959]
[1756921754619,0.28600001,4488.8,4488.7,5.97510959]
[1756921754797,0.28600001,4488.8,4488.7,9.80510959]
[1756921755128,1e-08,4488.8,4488.7,9.80510959]
[1756921755640,1e-08,4488.8,4488.7,10.09250959]
[1756921757019,0.28600001,4488.8,4488.7,5.97510959]
[1756921757220,0.28600001,4488.8,4488.7,9.80310959]
[1756921757623,1.19540001,4488.8,4488.7,5.18310959]
[1756921757831,1.19540001,4488.8,4488.7,3.9392]
[1756921758754,1.19540001,4488.8,4488.7,8.18919999]
[1756921759552,0.76250001,4488.8,4488.7,10.4170165]
[1756921759755,1.19540001,4488.8,4488.7,10.4170165]
[1756921760130,1.19540001,4488.8,4488.7,8.18919999]
[1756921760342,1.19540001,4488.8,4488.7,8.18819999]
[1756921766326,1.19540001,4488.8,4488.7,10.4160165]
[1756921766765,1.19540001,4488.8,4488.7,8.18819999]
[1756921766963,1e-08,4488.8,4488.7,10.4160165]
[1756921767163,1e-08,4488.8,4488.7,10.7034165]
[1756921767666,0.002,4489.3,4488.7,10.7034165]
[1756921767667,0.002,4489.3,4489.2,2.22756838]
[1756921767868,0.002,4489.3,4489.2,11.09056836]
[1756921768048,0.002,4489.3,4489.2,11.48916836]
[1756921769662,0.002,4489.3,4489.2,11.93866836]
[1756921771380,0.002,4489.3,4489.2,11.48916836]
[1756921771683,0.002,4489.3,4489.2,12.86085196]
[1756921771885,0.002,4489.3,4489.2,13.32035196]
[1756921772574,0.002,4489.3,4489.2,12.86085196]
[1756921772890,1.2329,4489.3,4489.2,10.40676836]
[1756921773047,0.7742,4489.3,4489.2,10.40676836]
[1756921773253,0.313,4489.3,4489.2,10.40676836]
[1756921773547,0.002,4489.3,4489.2,7.26486838]
[1756921773769,0.002,4489.3,4489.2,8.68507198]
[1756921773999,0.002,4489.3,4489.2,13.86827196]
[1756921774850,0.025,4489.8,4489.5,3.01941953]
[1756921775046,0.025,4489.8,4489.7,2.22732031]
[1756921775281,0.9199,4489.7,4489.6,5.95999998]
[1756921775578,1.2309,4489.7,4489.6,12.00435391]
[1756921775769,1.2309,4489.7,4489.6,12.11555391]
[1756921776076,0.311,4489.7,4489.6,12.11555391]
[1756921776381,0.027,4489.8,4489.7,2.22732031]
[1756921776747,0.338,4489.8,4489.7,2.22732031]
[1756921776945,1.2579,4489.8,4489.7,2.22732031]
[1756921778185,1.2579,4489.8,4489.7,10.28932029]
[1756921778378,1.2579,4489.8,4489.7,6.47532029]
[1756921778575,1.2579,4489.8,4489.7,8.06099998]
[1756921779096,3.48518484,4489.8,4489.6,1.8232]
[1756921779310,0.338,4489.8,4489.7,3.813]
[1756921779469,7.68573034,4489.8,4489.7,3.813]
[1756921780100,8.60563034,4489.8,4489.7,3.813]
[1756921780303,1.2579,4489.8,4489.6,1.8232]
[1756921780508,0.338,4489.8,4489.7,3.814]
[1756921781074,1.2579,4489.8,4489.7,3.814]
[1756921781477,0.7992,4489.8,4489.7,3.814]
[1756921781899,0.338,4489.8,4489.7,3.814]
[1756921782789,0.027,4489.8,4489.7,6.37969351]
[1756921783097,0.027,4489.8,4489.7,8.61725069]
[1756921783486,0.027,4489.8,4489.7,9.55045069]
[1756921786913,0.027,4489.8,4489.7,9.54545069]
[1756921787109,0.027,4489.8,4489.7,4.80325069]
[1756921787312,0.027,4489.8,4489.7,4.48715069]
[1756921787481,0.027,4489.8,4489.7,8.29615069]
[1756921788082,0.338,4489.8,4489.7,6.03632031]
[1756921788321,0.338,4489.8,4489.7,6.35242031]
[1756921788322,0.027,4489.8,4489.7,6.35242031]
[1756921788622,0.027,4489.8,4489.7,7.14442031]
[1756921790485,0.027,4489.8,4489.7,6.82832031]
[1756921790686,0.338,4489.8,4489.7,6.82832031]
[1756921790985,0.338,4489.8,4489.7,8.45141349]
[1756921791185,0.027,4489.8,4489.7,8.45141349]
[1756921791880,0.027,4489.8,4489.7,4.64241349]
[1756921792085,0.027,4489.8,4489.7,8.44841349]
[1756921792516,0.027,4489.8,4489.7,8.76451349]
[1756921792686,0.027,4489.8,4489.7,8.44841349]
[1756921792894,0.027,4489.8,4489.7,8.76451349]
[1756921793325,0.027,4489.8,4489.7,8.44841349]
[1756921793527,0.338,4489.8,4489.7,8.44841349]
[1756921794114,0.313,4489.8,4489.7,8.44841349]
[1756921794318,0.4607,4490.2,4490.0,6.13716582]
[1756921794518,0.4607,4490.2,4489.7,3.90999998]
[1756921794519,0.311,4489.8,4489.7,3.90999998]
[1756921794713,1.2309,4489.8,4489.7,9.94132029]
[1756921794898,0.7722,4489.8,4489.7,10.05252029]
[1756921795331,0.311,4489.8,4489.7,10.05252029]
[1756921795908,0.9219,4490.2,4490.0,2.22716382]
[1756921796235,0.002,4490.2,4490.1,3.804]
[1756921796423,0.002,4490.2,4490.1,3.9152]